bitfinex/quotes_SOLUSD_20251018
["timestamp","ask_amount","ask_price","bid_price","bid_amount"]
[1760760177383,2.21836595,184.82,184.78,0.67]
[1760760177603,2.90836595,184.83,184.79,5.41154824]
[1760760177795,2.90836595,184.83,184.79,6.08154824]
[1760760178198,2.21836595,184.84,184.79,6.08154824]
[1760760178390,2.90836595,184.83,184.79,6.08154824]
[1760760179201,2.21836595,184.83,184.79,6.08154824]
[1760760179891,2.21836595,184.84,184.8,0.67]
[1760760180090,2.90836595,184.84,184.8,0.67]
[1760760180497,0.69,184.83,184.79,41.82041884]
[1760760180987,0.69,184.82,184.79,41.82041884]
[1760760181191,2.21836595,184.83,184.79,41.82041884]
[1760760181387,6.08487468,184.89,184.79,41.82041884]
[1760760181388,2.90836595,184.85,184.8,0.67]
[1760760181709,2.21836595,184.85,184.81,5.41096261]
[1760760181907,2.90836595,184.85,184.81,5.41096261]
[1760760182204,0.69,184.84,184.81,5.41096261]
[1760760183396,0.69,184.83,184.81,5.41096261]
[1760760183592,0.69,184.82,184.8,5.41122203]
[1760760183791,2.90836595,184.81,184.76,48.1]
[1760760184002,2.90836595,184.81,184.75,5.41247736]
[1760760184003,2.21836595,184.77,184.75,48.1]
[1760760184209,2.87836595,184.77,184.74,5.41274671]
[1760760184707,0.66,184.77,184.74,5.41274671]
[1760760185701,2.21836595,184.75,184.7,41.39513009]
[1760760185900,2.21836595,184.74,184.71,5.41389204]
[1760760186105,2.21836595,184.74,184.64,27.07955084]
[1760760186106,0.66,184.77,184.68,5.41477149]
[1760760186307,2.21836595,184.76,184.72,0.66]
[1760760186704,2.87836595,184.76,184.72,0.66]
[1760760187011,2.87836595,184.75,184.7,5.41418516]
[1760760187213,2.21836595,184.74,184.7,6.07418516]
[1760760187406,2.87836595,184.74,184.7,6.07418516]
[1760760187606,2.87836595,184.73,184.7,5.41418516]
[1760760188109,2.21836595,184.73,184.7,5.41418516]
[1760760188996,2.21836595,184.74,184.7,6.11418516]
[1760760189198,2.93836595,184.74,184.7,19.64964807]
[1760760189621,2.21836595,184.75,184.7,18.94964807]
[1760760189920,2.21836595,184.76,184.71,0.7]
[1760760190305,2.21836595,184.74,184.7,18.94964807]
[1760760190493,0.72,184.74,184.7,18.94964807]
[1760760190696,2.21836595,184.76,184.71,0.7]
[1760760191001,2.21836595,184.76,184.72,0.7]
[1760760191204,2.21836595,184.76,184.73,0.7]
[1760760191810,2.21836595,184.76,184.71,0.7]
[1760760191994,2.21836595,184.75,184.72,0.7]
[1760760192194,2.21836595,184.75,184.67,69.33453474]
[1760760192506,2.21836595,184.73,184.69,0.14216157]
[1760760192698,2.21836595,184.73,184.7,0.7]
[1760760192900,2.21836595,184.73,184.71,0.7]
[1760760193088,2.21836595,184.73,184.72,6.11359896]
[1760760193611,2.21836595,184.74,184.72,6.11359896]
[1760760194793,2.21836595,184.73,184.7,19.64926674]
[1760760194994,2.21836595,184.72,184.71,0.7]
[1760760195220,2.21836595,184.73,184.71,0.7]
[1760760196021,2.21836595,184.73,184.72,5.41359896]
[1760760197503,1.42057634,184.73,184.72,5.41359896]
[1760760197905,1.42057634,184.73,184.72,0.7]
[1760760198215,1.42057634,184.75,184.72,0.7]
[1760760198430,1.42057634,184.75,184.73,0.7]
[1760760198605,1.42057634,184.75,184.74,0.7]
[1760760199494,1.42057634,184.76,184.74,0.7]
[1760760199823,1.42057634,184.76,184.71,0.42648471]
[1760760199824,1.42057634,184.76,184.75,6.11271989]
[1760760200034,0.67622396,184.85,184.76,0.42648471]
[1760760200195,13.51997342,184.92,184.77,0.7]
[1760760200196,1.42057634,184.83,184.77,0.7]
[1760760201325,1.42057634,184.83,184.78,18.94144387]
[1760760201503,1.42057634,184.83,184.79,0.7]
[1760760201705,1.42057634,184.83,184.8,0.7]
[1760760202211,1.42057634,184.81,184.78,18.94144387]
[1760760202404,6.35849274,184.86,184.78,18.94144387]
[1760760202405,2.14057634,184.8,184.78,18.94144387]
[1760760202710,1.42057634,184.79,184.78,18.94144387]
[1760760203407,2.14057634,184.79,184.77,5.412134]
[1760760203618,1.42057634,184.78,184.77,5.412134]
[1760760206232,1.42057634,184.79,184.77,0.7]
[1760760206423,1.42057634,184.79,184.77,48.8]
[1760760206623,1.42057634,184.79,184.77,48.1]
[1760760207228,1.42057634,184.8,184.78,0.7]
[1760760207428,1.42057634,184.8,184.79,5.41154824]
[1760760207724,0.42648471,184.87,184.79,5.41154824]
[1760760207725,0.72,184.87,184.79,5.41154824]
[1760760207904,1.42057634,184.82,184.79,5.41154824]
[1760760208105,1.42057634,184.82,184.79,6.11154824]
[1760760208418,22.88,184.88,184.79,6.11154824]
[1760760208605,1.42057634,184.82,184.79,6.11154824]
[1760760208805,1.42057634,184.82,184.76,50.52]
[1760760208806,1.42057634,184.8,184.69,0.7]
[1760760209113,1.42057634,184.73,184.7,18.94964807]
[1760760209318,1.42057634,184.72,184.7,14.23546291]
[1760760209515,1.42057634,184.73,184.7,14.23546291]
[1760760209719,1.42057634,184.71,184.68,5.41477149]
[1760760209921,0.67655336,184.76,184.68,5.41477149]
[1760760210123,1.42057634,184.72,184.69,0.7]
[1760760210326,29.23882211,184.77,184.66,22.88]
[1760760210525,1.42057634,184.67,184.63,0.7]
[1760760210816,1.42057634,184.66,184.64,0.7]
[1760760211530,1.42057634,184.66,184.65,5.41565123]
[1760760211912,1.42057634,184.67,184.65,5.41565123]
[1760760212113,1.42057634,184.67,184.65,6.11565123]
[1760760212833,1.42057634,184.66,184.65,6.11565123]
[1760760214031,0.72,184.7,184.65,6.11565123]
[1760760214335,1.42057634,184.66,184.65,6.11565123]
[1760760215012,1.42057634,184.66,184.65,5.41565123]
[1760760215230,1.42057634,184.66,184.63,5.41598006]
[1760760215431,1.42057634,184.65,184.63,5.41598006]
[1760760215616,1.42057634,184.64,184.63,53.51598006]
[1760760215808,0.72,184.68,184.63,53.51598006]
[1760760216009,0.72,184.7,184.64,0.7]
[1760760216210,1.42057634,184.7,184.64,48.8]
[1760760216425,1.42057634,184.7,184.65,0.7]
[1760760216628,1.42057634,184.71,184.65,48.8]
[1760760216834,1.42057634,184.71,184.66,0.7]
[1760760217043,1.42057634,184.72,184.67,0.14216157]
[1760760217217,1.42057634,184.72,184.68,0.7]
[1760760217424,1.42057634,184.72,184.69,0.7]
[1760760217733,1.42057634,184.73,184.7,6.11418516]
[1760760217934,1.42057634,184.74,184.71,0.7]
[1760760218242,1.42057634,184.74,184.72,0.7]
[1760760218607,1.42057634,184.73,184.7,6.11418516]
[1760760218930,1.42057634,184.72,184.7,5.41418516]
[1760760219455,1.42057634,184.72,184.66,0.28432314]
[1760760219456,8.63803696,184.71,184.61,0.7]
[1760760219627,3.62078578,184.64,184.62,5.41653125]
[1760760219935,3.62078578,184.64,184.62,6.11653125]
[1760760220327,3.62078578,184.63,184.62,5.41653125]
[1760760220515,3.62078578,184.64,184.62,5.41653125]
[1760760221317,0.72,184.67,184.61,5.41682465]
[1760760221624,3.62078578,184.65,184.62,0.7]
[1760760222144,3.62078578,184.65,184.61,5.41682465]
[1760760222327,3.62078578,184.65,184.59,13.54312156]
[1760760222328,3.62078578,184.62,184.59,5.41735303]
[1760760222641,0.72,184.64,184.59,6.11735303]
[1760760222642,3.62078578,184.63,184.59,6.11735303]
[1760760223337,3.62078578,184.64,184.61,5.41682465]
[1760760223712,3.62078578,184.63,184.61,5.41682465]
[1760760224638,3.62078578,184.63,184.59,18.96094046]
[1760760224825,3.62078578,184.63,184.59,19.66094046]
[1760760225227,3.62078578,184.63,184.59,18.96094046]
[1760760225538,3.62078578,184.63,184.6,0.7]
[1760760225936,3.62078578,184.63,184.59,18.96094046]
[1760760226146,3.62078578,184.63,184.59,19.66094046]
[1760760226851,22.88,184.66,184.6,0.7]
[1760760227056,3.62078578,184.63,184.6,0.7]
[1760760227252,3.62078578,184.63,184.59,18.96094046]
[1760760227427,3.62078578,184.63,184.59,19.66094046]
[1760760227827,3.62078578,184.63,184.59,67.76094046]
[1760760228247,3.62078578,184.63,184.6,6.1168477]
[1760760229938,3.62078578,184.63,184.6,5.4168477]
[1760760230358,0.72,184.62,184.6,5.4168477]
[1760760230643,3.62078578,184.61,184.6,5.4168477]
[1760760231144,3.62078578,184.66,184.6,54.2168477]
[1760760231346,3.62078578,184.66,184.61,0.7]
[1760760231521,3.62078578,184.66,184.6,67.05964293]
[1760760231725,3.62078578,184.65,184.6,67.05964293]
[1760760231921,4.34078578,184.65,184.6,67.75964293]
[1760760232117,3.62078578,184.64,184.61,0.7]
[1760760232347,3.62078578,184.64,184.6,67.05964293]
[1760760232642,3.62078578,184.64,184.6,67.75964293]
[1760760232833,3.62078578,184.64,184.61,0.7]
[1760760233138,3.62078578,184.64,184.6,67.05964293]
[1760760233317,3.62078578,184.66,184.61,0.7]
[1760760233520,3.62078578,184.67,184.62,0.7]
[1760760233717,3.62078578,184.68,184.62,0.7]
[1760760234317,3.62078578,184.68,184.63,18.95683258]
[1760760234521,3.62078578,184.68,184.64,0.7]
[1760760235041,0.72,184.7,184.64,0.7]
[1760760235247,3.62078578,184.67,184.63,18.95683258]
[1760760235451,3.62078578,184.67,184.63,19.65683258]
[1760760235822,3.62078578,184.68,184.64,0.7]
[1760760236142,3.62078578,184.68,184.65,0.7]
[1760760236724,3.62078578,184.68,184.66,5.41535795]
[1760760236922,3.62078578,184.7,184.67,0.7]
[1760760237532,0.72,184.69,184.66,18.95375283]
[1760760237743,4.34078578,184.69,184.66,18.95375283]
[1760760237954,4.34078578,184.69,184.66,5.41535795]
[1760760238440,3.62078578,184.67,184.64,5.41594454]
[1760760238644,3.62078578,184.65,184.54,0.7]
[1760760238840,3.62078578,184.6,184.58,0.8]
[1760760239057,3.62078578,184.62,184.58,6.21769869]
[1760760239230,3.62078578,184.63,184.59,0.7]
[1760760239430,1.42222829,184.63,184.6,0.7]
[1760760239848,1.42222829,184.63,184.58,5.51769869]
[1760760240050,1.42222829,184.61,184.59,0.7]
[1760760240354,2.04222829,184.6,184.58,5.51769869]
[1760760240557,0.62,184.6,184.58,0.1]
[1760760240844,24.17699306,184.64,184.58,6.21770506]
[1760760241056,1.42222829,184.62,184.58,5.51770506]
[1760760241350,1.42222829,184.62,184.59,0.7]
[1760760241534,23.55699306,184.64,184.6,0.7]
[1760760241731,1.42222829,184.62,184.58,5.51770506]
[1760760242036,1.42222829,184.62,184.58,6.21770506]
[1760760242431,1.42222829,184.61,184.58,6.21770506]
[1760760242631,1.42222829,184.65,184.59,0.7]
[1760760242835,1.42222829,184.65,184.6,5.41711809]
[1760760243058,1.42222829,184.65,184.61,0.7]
[1760760243257,1.42222829,184.66,184.62,0.7]
[1760760243558,1.42222829,184.67,184.63,0.7]
[1760760243741,1.42222829,184.67,184.63,48.8]
[1760760243933,1.42222829,184.67,184.64,0.71]
[1760760244749,1.42222829,184.67,184.6,48.1]
[1760760244951,1.42222829,184.67,184.59,22.88]
[1760760244952,1.42222829,184.63,184.59,0.71]
[1760760245139,1.42222829,184.64,184.6,0.71]
[1760760245544,0.62,184.66,184.6,0.71]
[1760760245545,1.42222829,184.63,184.6,0.71]
[1760760245839,0.62,184.66,184.6,0.71]
[1760760246050,1.42222829,184.63,184.6,0.71]
[1760760246939,1.42222829,184.63,184.6,6.12706353]
[1760760247354,1.42222829,184.61,184.59,5.41739282]
[1760760247943,1.42222829,184.6,184.59,5.41739282]
[1760760248551,2.04222829,184.6,184.58,0.1]
[1760760248857,4.14163302,184.59,184.58,0.1]
[1760760249035,2.71940473,184.59,184.58,0.1]
[1760760249933,9.55904458,184.59,184.58,0.1]
[1760760250761,6.714588,184.59,184.58,0.1]
[1760760251060,4.14163302,184.59,184.58,0.1]
[1760760251231,27.02163302,184.59,184.58,0.1]
[1760760251434,27.80183548,184.59,184.58,0.1]
[1760760251631,27.18183548,184.59,184.58,0.1]
[1760760251832,27.80183548,184.59,184.58,0.1]
[1760760253557,26.50465904,184.59,184.58,0.1]
[1760760253744,32.5420706,184.59,184.58,0.1]
[1760760254058,26.50465904,184.59,184.58,0.1]
[1760760254957,27.12465904,184.59,184.58,0.1]
[1760760255166,23.5,184.59,184.58,0.1]
[1760760255466,28.91741156,184.59,184.52,0.1]
[1760760255665,0.67721313,184.58,184.53,0.65]
[1760760255858,22.88,184.59,184.54,0.65]
[1760760256066,3.62465904,184.57,184.55,0.65]
[1760760256655,0.67710308,184.61,184.53,0.14216157]
[1760760256973,3.62465904,184.59,184.56,0.65]
[1760760257163,3.62465904,184.59,184.57,0.65]
[1760760257347,5.46681556,184.58,184.55,0.65]
[1760760257539,5.46681556,184.57,184.55,0.65]
[1760760257743,5.46681556,184.57,184.55,6.06855531]
[1760760258644,5.46681556,184.56,184.55,6.06855531]
[1760760258844,5.46681556,184.56,184.55,5.41855531]
[1760760259068,0.67713976,184.6,184.55,5.41855531]
[1760760259256,5.46681556,184.56,184.55,5.41855531]
[1760760259651,5.46681556,184.56,184.55,6.06855531]
[1760760259858,5.46681556,184.56,184.52,0.1]
[1760760260051,5.46681556,184.54,184.52,5.5194543]
[1760760260254,5.46681556,184.54,184.53,0.65]
[1760760260451,5.46681556,184.54,184.52,0.1]
[1760760260646,5.46681556,184.53,184.52,0.1]
[1760760262661,0.67732321,184.55,184.52,0.1]
[1760760262947,5.46681556,184.53,184.52,0.1]
[1760760263174,0.67735992,184.54,184.52,0.1]
[1760760263582,5.46681556,184.54,184.52,0.75]
[1760760264467,5.46681556,184.54,184.52,6.16946672]
[1760760265750,5.46681556,184.53,184.52,0.1]
[1760760266852,5.98681556,184.53,184.52,0.1]
[1760760267666,5.46681556,184.53,184.52,0.1]
[1760760268872,6.66421218,184.53,184.52,0.1]
[1760760269371,12.08338521,184.53,184.52,0.1]
[1760760269675,6.66421218,184.53,184.52,0.1]
[1760760269881,6.14421218,184.53,184.52,0.1]
[1760760270579,6.66421218,184.53,184.52,0.1]
[1760760271657,1.19739662,184.53,184.52,0.1]
[1760760271880,6.66421218,184.53,184.52,0.1]
[1760760272459,5.46681556,184.55,184.52,0.75]
[1760760272680,5.46681556,184.55,184.53,0.65]
[1760760273383,2.22394865,184.55,184.53,0.65]
[1760760273683,2.22394865,184.56,184.53,0.65]
[1760760273863,2.22394865,184.55,184.53,0.65]
[1760760274260,2.22394865,184.55,184.52,0.1]
[1760760274472,2.22394865,184.55,184.53,0.65]
[1760760275672,2.22394865,184.56,184.53,6.06909167]
[1760760276268,0.67724982,184.57,184.54,0.65]
[1760760276485,2.22394865,184.59,184.54,0.65]
[1760760276982,0.67721313,184.58,184.55,0.65]
[1760760277168,0.67721313,184.58,184.56,0.65]
[1760760277371,0.67713976,184.6,184.57,0.65]
[1760760277561,2.22394865,184.64,184.57,6.06798312]
[1760760277766,0.6769564,184.65,184.57,6.06798312]
[1760760277767,2.22394865,184.65,184.58,0.65]
[1760760277985,2.22394865,184.64,184.58,0.65]
[1760760278480,2.22394865,184.66,184.58,0.93432314]
[1760760278685,2.22394865,184.65,184.59,0.69]
[1760760279481,2.22394865,184.64,184.6,5.41711809]
[1760760279681,2.22394865,184.64,184.61,0.69]
[1760760279984,2.22394865,184.64,184.62,0.69]
[1760760280383,2.22394865,184.65,184.62,0.69]
[1760760280580,22.88,184.66,184.62,6.10652412]
[1760760280888,2.22394865,184.65,184.63,0.69]
[1760760281091,0.52,184.69,184.63,0.69]
[1760760281278,2.22394865,184.65,184.63,0.69]
[1760760282268,2.22394865,184.66,184.64,0.69]
[1760760282484,2.22394865,184.65,184.62,5.41652412]
[1760760282788,2.22394865,184.68,184.63,0.69]
[1760760282987,2.22394865,184.67,184.64,0.69]
[1760760283288,2.22394865,184.67,184.62,5.41652412]
[1760760283586,2.22394865,184.67,184.65,0.69]
[1760760285990,2.22394865,184.66,184.65,0.69]
[1760760287695,2.22394865,184.66,184.63,0.69]
[1760760287892,2.22394865,184.65,184.64,0.69]
[1760760288396,2.22394865,184.66,184.64,0.69]
[1760760288689,2.22394865,184.65,184.62,5.41653125]
[1760760288893,1.19677314,184.7,184.62,5.41653125]
[1760760288894,2.22394865,184.66,184.62,5.41653125]
[1760760289193,2.22394865,184.66,184.61,61.64179218]
[1760760289194,2.22394865,184.66,184.64,5.41594454]
[1760760289392,2.22394865,184.66,184.64,6.10594454]
[1760760290093,2.22394865,184.67,184.65,0.69]
[1760760290384,2.22394865,184.67,184.66,0.69]
[1760760292488,0.67677314,184.7,184.66,6.10535795]
[1760760292676,2.22394865,184.68,184.67,0.69]
[1760760292868,2.22394865,184.69,184.67,0.69]
[1760760293193,2.22394865,184.69,184.68,0.69]
[1760760295798,23.55669987,184.72,184.68,0.69]
[1760760295993,2.22394865,184.69,184.65,0.69]
[1760760296295,2.22394865,184.68,184.66,0.69]
[1760760296504,2.22394865,184.68,184.67,0.69]
[1760760296707,2.22394865,184.68,184.62,0.69]
[1760760297774,2.22394865,184.68,184.63,18.95683258]
[1760760297973,2.22394865,184.69,184.64,0.69]
[1760760298569,2.22394865,184.68,184.66,22.88]
[1760760298772,2.22394865,184.68,184.66,23.57]
[1760760298975,2.22394865,184.68,184.67,0.69]
[1760760299178,2.22394865,184.68,184.64,48.1]
[1760760299179,2.22394865,184.68,184.64,0.69]
[1760760299479,2.22394865,184.68,184.65,0.69]
[1760760299680,2.22394865,184.68,184.66,0.69]
[1760760301400,2.22394865,184.67,184.63,22.88]
[1760760301597,27.3278973,184.64,184.51,0.79]
[1760760301799,2.22394865,184.53,184.51,0.79]
[1760760301987,2.22394865,184.53,184.51,0.1]
[1760760302384,25.24611022,184.53,184.51,0.1]
[1760760302585,0.42648471,184.52,184.51,0.1]
[1760760302785,4.87438201,184.52,184.51,0.1]
[1760760302989,25.53043336,184.52,184.46,0.1]
[1760760303291,23.30648471,184.49,184.46,0.1]
[1760760303484,2.22394865,184.47,184.46,0.1]
[1760760303694,0.67758022,184.48,184.46,0.1]
[1760760304005,2.90152887,184.48,184.46,0.1]
[1760760304410,2.90138199,184.52,184.47,0.66]
[1760760304704,2.90138199,184.52,184.48,0.66]
[1760760305396,0.67747005,184.51,184.46,0.76]
[1760760305603,2.22394865,184.5,184.46,0.76]
[1760760305790,0.67754349,184.49,184.46,6.18119592]
[1760760306101,2.22394865,184.52,184.47,0.66]
[1760760306404,0.67747005,184.51,184.48,0.66]
[1760760306707,0.67747005,184.51,184.46,6.18119592]
[1760760307288,2.22394865,184.5,184.46,0.76]
[1760760307593,0.67754349,184.49,184.46,0.76]
[1760760307804,0.67754349,184.49,184.47,0.67]
[1760760308096,0.67754349,184.49,184.46,0.1]
[1760760308097,5.47291238,184.51,184.46,0.1]
[1760760308284,0.67750677,184.5,184.46,0.1]
[1760760308484,0.67750677,184.5,184.46,0.77]
[1760760309599,0.67750677,184.5,184.47,0.67]
[1760760310302,0.67750677,184.5,184.46,0.1]
[1760760310507,0.67750677,184.5,184.46,0.77]
[1760760311590,0.67750677,184.5,184.46,0.1]
[1760760311786,0.67750677,184.5,184.47,0.67]
[1760760311982,6.15038243,184.51,184.47,0.67]
[1760760312184,6.15038243,184.51,184.46,0.1]
[1760760312385,6.15038243,184.51,184.47,0.67]
[1760760312806,6.15038243,184.51,184.46,0.1]
[1760760313308,6.15038243,184.51,184.47,0.67]
[1760760314392,6.15038243,184.51,184.46,0.1]
[1760760314589,0.67747005,184.51,184.46,0.1]
[1760760314886,6.1502723,184.54,184.47,0.67]
[1760760316517,5.47291238,184.52,184.47,0.67]
[1760760316702,0.67747005,184.51,184.47,0.67]
[1760760316908,0.67747005,184.51,184.48,0.67]
[1760760317408,27.18279759,184.54,184.49,0.67]
[1760760317616,26.50543767,184.54,184.49,0.67]
[1760760318617,26.50543767,184.54,184.5,18.9701897]
[1760760318618,22.16,184.54,184.5,18.9701897]
[1760760318909,52.81142037,184.7,184.49,0.67]
[1760760318910,3.62543767,184.55,184.51,0.67]
[1760760319089,0.7,184.54,184.49,5.42031846]
[1760760319293,0.7,184.54,184.49,6.09031846]
[1760760320022,3.62543767,184.55,184.5,0.67]
[1760760320312,4.32543767,184.55,184.51,5.41976044]
[1760760320613,4.32543767,184.55,184.5,0.67]
[1760760320912,3.62543767,184.55,184.51,0.67]
[1760760321110,4.30268749,184.57,184.52,0.67]
[1760760321316,22.88,184.58,184.53,0.67]
[1760760321515,26.50543767,184.58,184.53,0.67]
[1760760322101,27.20543767,184.58,184.53,0.67]
[1760760323906,5.4171611,184.6,184.54,0.67]
[1760760323907,3.62543767,184.6,184.54,0.67]
[1760760324115,0.7,184.62,184.54,0.67]
[1760760324116,0.67702973,184.63,184.54,0.67]
[1760760324324,3.62543767,184.63,184.54,0.67]
[1760760324510,22.88,184.62,184.55,5.41858574]
[1760760324699,23.5570664,184.62,184.56,0.67]
[1760760325223,3.62543767,184.61,184.53,0.67]
[1760760325396,1.37713976,184.6,184.53,0.67]
[1760760325600,0.67713976,184.6,184.53,0.67]
[1760760325801,22.88,184.61,184.53,0.67]
[1760760326408,4.30239407,184.65,184.55,19.24937325]
[1760760326606,3.62543767,184.65,184.56,0.67]
[1760760327000,1.37688308,184.67,184.56,0.67]
[1760760327200,4.32543767,184.66,184.56,0.67]
[1760760327508,0.6769564,184.65,184.56,0.67]
[1760760328205,4.32543767,184.64,184.56,0.67]
[1760760328817,3.62543767,184.66,184.57,18.96299506]
[1760760329118,3.62543767,184.66,184.58,0.95432314]
[1760760329327,2.79873489,184.67,184.59,0.67]
[1760760329622,2.12185181,184.67,184.59,0.67]
[1760760330213,2.12185181,184.69,184.59,0.67]
[1760760330405,0.6767365,184.71,184.61,0.28432314]
[1760760330406,1.42185181,184.7,184.61,0.28432314]
[1760760330615,1.42185181,184.7,184.62,0.67]
[1760760330803,1.42185181,184.65,184.59,0.67]
[1760760331003,0.7,184.65,184.59,0.67]
[1760760332227,22.88,184.68,184.6,0.14216157]
[1760760332427,0.2,184.73,184.64,0.42648471]
[1760760332613,0.2,184.73,184.66,0.42648471]
[1760760332815,0.2,184.73,184.67,0.67]
[1760760333528,1.42185181,184.72,184.65,5.41565123]
[1760760333729,0.7,184.71,184.65,5.41565123]
[1760760333921,0.67677314,184.7,184.65,5.41565123]
[1760760334225,1.37677314,184.7,184.65,5.41565123]
[1760760334616,0.67669987,184.72,184.67,5.41506471]
[1760760334836,0.7,184.71,184.67,5.41506471]
[1760760335523,23.55669987,184.72,184.67,5.41506471]
[1760760335715,23.55669987,184.72,184.68,0.67]
[1760760336123,23.55669987,184.72,184.67,5.41506471]
[1760760336338,0.87666323,184.73,184.69,0.67]
[1760760336535,0.2,184.73,184.69,0.67]
[1760760336844,0.2,184.73,184.69,6.08443932]
[1760760338117,0.2,184.73,184.63,18.95683258]
[1760760338316,0.2,184.73,184.64,1.11648471]
[1760760338518,0.2,184.73,184.65,0.69]
[1760760339336,0.2,184.73,184.66,18.95375283]
[1760760339542,0.2,184.73,184.67,0.69]
[1760760339844,0.2,184.73,184.67,48.79]
[1760760340029,0.2,184.73,184.68,0.69]
[1760760340346,0.2,184.73,184.69,0.69]
[1760760340724,0.2,184.73,184.67,48.1]
[1760760340920,0.87666323,184.73,184.69,0.69]
[1760760341221,0.2,184.73,184.69,0.69]
[1760760341644,1.62185181,184.73,184.69,0.69]
[1760760342145,0.2,184.73,184.7,0.69]
[1760760342841,0.2,184.73,184.71,0.69]
[1760760343045,1.62185181,184.73,184.71,0.69]
[1760760343536,1.62185181,184.73,184.71,6.10388999]
[1760760343721,0.2,184.73,184.71,6.10388999]
[1760760345235,0.2,184.73,184.69,5.41447831]
[1760760345451,1.62185181,184.73,184.71,0.69]
[1760760346239,0.2,184.73,184.71,6.10371547]
[1760760347631,1.62185181,184.73,184.71,6.10371547]
[1760760347831,0.2,184.73,184.71,6.10371547]
[1760760348142,1.62185181,184.73,184.71,6.10371547]
[1760760348742,0.2,184.73,184.71,6.10371547]
[1760760348938,1.62185181,184.73,184.71,6.10371547]
[1760760350420,0.2,184.73,184.67,27.07429866]
[1760760350626,0.2,184.73,184.72,23.57]
[1760760351944,0.2,184.73,184.72,0.69]
[1760760352554,0.2,184.73,184.72,6.10359896]
[1760760353961,0.2,184.73,184.7,18.94925739]
[1760760354258,0.2,184.73,184.71,0.69]
[1760760354461,2.12185181,184.72,184.61,14.23174651]
[1760760354626,1.42185181,184.64,184.61,0.69]
[1760760354832,1.42185181,184.64,184.62,0.69]
[1760760355050,0.67680978,184.69,184.63,0.69]
[1760760355255,1.62185181,184.73,184.64,0.14216157]
[1760760355559,0.2,184.73,184.66,0.42648471]
[1760760355770,0.2,184.73,184.67,28.65]
[1760760356057,0.2,184.73,184.68,19.64170023]
[1760760356428,0.2,184.73,184.69,0.69]
[1760760357132,0.2,184.73,184.7,18.94964807]
[1760760357457,0.2,184.73,184.71,0.69]
[1760760357835,0.2,184.73,184.7,18.94964807]
[1760760358139,0.2,184.73,184.71,0.69]
[1760760358531,0.2,184.73,184.72,0.69]
[1760760359030,0.2,184.73,184.72,6.10359896]
[1760760363971,0.2,184.73,184.72,54.20359896]
[1760760374266,0.2,184.73,184.72,6.10359896]
[1760760374462,0.2,184.77,184.73,0.42648471]
[1760760374768,0.2,184.77,184.74,0.7]
[1760760375972,3.61647638,184.85,184.77,0.42648471]
[1760760376172,3.61647638,184.85,184.78,28.54]
[1760760376475,3.61647638,184.85,184.8,5.41125541]
[1760760376856,3.61647638,184.86,184.8,19.63939393]
[1760760377062,3.61647638,184.86,184.81,0.7]
[1760760377257,3.61647638,184.86,184.82,0.7]
[1760760377462,2.21643181,184.86,184.82,0.7]
[1760760378463,0.2,184.88,184.83,19.63631985]
[1760760378856,0.2,184.88,184.84,0.7]
[1760760379189,2.41643181,184.88,184.84,0.7]
[1760760379560,3.08643181,184.88,184.84,0.7]
[1760760380580,3.08643181,184.88,184.85,5.40979172]
[1760760381071,3.08643181,184.88,184.85,6.10979172]
[1760760381072,2.41643181,184.88,184.85,6.10979172]
[1760760381275,0.2,184.88,184.85,19.63427102]
[1760760381461,0.2,184.88,184.86,0.7]
[1760760381666,2.21643181,184.87,184.85,5.40979172]
[1760760382964,2.21643181,184.87,184.84,18.9352431]
[1760760383162,2.21643181,184.87,184.86,22.88]
[1760760384368,2.41643181,184.88,184.87,22.88]
[1760760385081,2.41643181,184.88,184.87,28.28920646]
[1760760386878,3.08643181,184.88,184.87,28.28920646]
[1760760387583,2.41643181,184.88,184.87,28.28920646]
[1760760388559,3.08643181,184.88,184.85,5.40953185]